[Event "Titled Tuesday Blitz July 26 Early 2022"]
[White "Zhigalko, Sergei"]
[Black "Lubbe, Nikolas"]
[WhiteFideId "13502956"]
[BlackFideId "4694031"]
[WhiteElo "2662"]
[BlackElo "2447"]
[Result "0-1"]
[Round "04"]
[TimeControl "180+1"]
[Date "2022.07.26"]
[WhiteClock "0:00:02"]
[BlackClock "0:00:06"]

1. e4 {[%clk 0:03:00]}  c5 {[%clk 0:03:00]} 2. Nf3 {[%clk 0:03:00]}  e6 {[%clk 0:03:00]} 3. c3 {[%clk 0:03:01]}  Nf6 {[%clk 0:03:00]} 4. e5 {[%clk 0:03:01]}  Nd5 {[%clk 0:03:01]} 5. Bc4 {[%clk 0:03:02]}  d6 {[%clk 0:03:00]} 6. d4 {[%clk 0:03:02]}  cxd4 {[%clk 0:02:59]} 7. cxd4 {[%clk 0:03:03]}  Nc6 {[%clk 0:03:00]} 8. O-O {[%clk 0:03:03]}  Nb6 {[%clk 0:02:58]} 9. Bd3 {[%clk 0:03:03]}  Be7 {[%clk 0:02:56]} 10. Nc3 {[%clk 0:03:03]}  Bd7 {[%clk 0:02:48]} 11. a3 {[%clk 0:02:59]}  dxe5 {[%clk 0:02:36]} 12. dxe5 {[%clk 0:02:58]}  Nd5 {[%clk 0:02:37]} 13. Nxd5 {[%clk 0:02:33]}  exd5 {[%clk 0:02:37]} 14. Qb3 {[%clk 0:02:28]}  Na5 {[%clk 0:02:25]} 15. Qd1 {[%clk 0:02:04]}  O-O {[%clk 0:02:18]} 16. Nd4 {[%clk 0:01:57]}  Nc6 {[%clk 0:02:14]} 17. Nxc6 {[%clk 0:01:48]}  bxc6 {[%clk 0:02:13]} 18. Be3 {[%clk 0:01:15]}  c5 {[%clk 0:02:06]} 19. Qc2 {[%clk 0:01:15]}  d4 {[%clk 0:01:45]} 20. Bd2 {[%clk 0:01:00]}  g6 {[%clk 0:01:38]} 21. f4 {[%clk 0:00:46]}  Rc8 {[%clk 0:01:22]} 22. b3 {[%clk 0:00:39]}  f5 {[%clk 0:01:20]} 23. exf6 {[%clk 0:00:35]}  Bxf6 {[%clk 0:01:20]} 24. Rae1 {[%clk 0:00:34]}  Re8 {[%clk 0:01:11]} 25. f5 {[%clk 0:00:31]}  g5 {[%clk 0:01:10]} 26. Qc4+ {[%clk 0:00:15]}  Kg7 {[%clk 0:01:09]} 27. Qd5 {[%clk 0:00:11]}  Rxe1 {[%clk 0:00:52]} 28. Rxe1 {[%clk 0:00:10]}  Be8 {[%clk 0:00:53]} 29. Qb7+ {[%clk 0:00:04]}  Rc7 {[%clk 0:00:49]} 30. Qa6 {[%clk 0:00:04]}  Bf7 {[%clk 0:00:46]} 31. Ba5 {[%clk 0:00:04]}  Bxb3 {[%clk 0:00:33]} 32. Bxc7 {[%clk 0:00:04]}  Qxc7 {[%clk 0:00:34]} 33. Bc4 {[%clk 0:00:05]}  Bc2 {[%clk 0:00:28]} 34. Qe6 {[%clk 0:00:04]}  d3 {[%clk 0:00:24]} 35. Qg8+ {[%clk 0:00:04]}  Kh6 {[%clk 0:00:25]} 36. Re6 {[%clk 0:00:03]}  Qb6 {[%clk 0:00:10]} 37. h3 {[%clk 0:00:02]}  d2 {[%clk 0:00:08]} 38. Kh2 {[%clk 0:00:02]}  d1=Q {[%clk 0:00:08]} 39. Qf8+ {[%clk 0:00:02]}  Kh5 {[%clk 0:00:07]} 40. Rxb6 {[%clk 0:00:03]}  Be5+ {[%clk 0:00:06]} 41. g3 {[%clk 0:00:03]}  Qd2+ {[%clk 0:00:06]} 42. Kh1 {[%clk 0:00:02]}  Be4+ {[%clk 0:00:06]} 0-1


[Site "https://www.chess.com"]

[Event "Titled Tuesday Blitz July 26 Early 2022"]
[White "Abdyzhapar, Asylbek"]
[Black "Makarian, Rudik"]
[WhiteFideId "13800337"]
[BlackFideId "44105681"]
[WhiteElo "2323"]
[BlackElo "2403"]
[Result "1-0"]
[Round "05"]
[TimeControl "180+1"]
[Date "2022.07.26"]
[WhiteClock "0:00:17"]
[BlackClock "0:00:03"]

1. d4 {[%clk 0:01:53]}  Nf6 {[%clk 0:02:58]} 2. c4 {[%clk 0:01:53]}  c5 {[%clk 0:02:59]} 3. d5 {[%clk 0:01:53]}  g6 {[%clk 0:02:59]} 4. Nc3 {[%clk 0:01:54]}  Bg7 {[%clk 0:03:00]} 5. e4 {[%clk 0:01:54]}  d6 {[%clk 0:03:01]} 6. f4 {[%clk 0:01:55]}  O-O {[%clk 0:03:00]} 7. Nf3 {[%clk 0:01:55]}  Bg4 {[%clk 0:02:51]} 8. Be2 {[%clk 0:01:53]}  e6 {[%clk 0:02:47]} 9. Nd2 {[%clk 0:01:51]}  Bxe2 {[%clk 0:02:43]} 10. Qxe2 {[%clk 0:01:51]}  Re8 {[%clk 0:02:41]} 11. O-O {[%clk 0:01:50]}  exd5 {[%clk 0:02:27]} 12. cxd5 {[%clk 0:01:36]}  Nxe4 {[%clk 0:02:25]} 13. Ncxe4 {[%clk 0:01:29]}  f5 {[%clk 0:02:25]} 14. Qf3 {[%clk 0:01:29]}  fxe4 {[%clk 0:02:25]} 15. Nxe4 {[%clk 0:01:29]}  Qe7 {[%clk 0:02:04]} 16. Ng5 {[%clk 0:01:24]}  Qe2 {[%clk 0:02:04]} 17. Ne6 {[%clk 0:01:22]}  Qxf3 {[%clk 0:02:03]} 18. Rxf3 {[%clk 0:01:21]}  Na6 {[%clk 0:02:03]} 19. Bd2 {[%clk 0:01:18]}  b5 {[%clk 0:01:29]} 20. Rb1 {[%clk 0:01:11]}  b4 {[%clk 0:01:19]} 21. f5 {[%clk 0:01:10]}  Be5 {[%clk 0:01:09]} 22. f6 {[%clk 0:01:10]}  Rf8 {[%clk 0:01:08]} 23. Nxf8 {[%clk 0:00:56]}  Rxf8 {[%clk 0:01:09]} 24. b3 {[%clk 0:00:52]}  Kf7 {[%clk 0:01:08]} 25. g4 {[%clk 0:00:49]}  Nc7 {[%clk 0:01:04]} 26. g5 {[%clk 0:00:47]}  Nxd5 {[%clk 0:01:04]} 27. Rd3 {[%clk 0:00:47]}  Nc3 {[%clk 0:00:57]} 28. Re1 {[%clk 0:00:42]}  Nxa2 {[%clk 0:00:41]} 29. Rxe5 {[%clk 0:00:42]}  dxe5 {[%clk 0:00:41]} 30. Rd7+ {[%clk 0:00:42]}  Ke6 {[%clk 0:00:41]} 31. Rxa7 {[%clk 0:00:38]}  Nc3 {[%clk 0:00:41]} 32. Be3 {[%clk 0:00:36]}  c4 {[%clk 0:00:23]} 33. bxc4 {[%clk 0:00:29]}  Rb8 {[%clk 0:00:24]} 34. f7 {[%clk 0:00:30]}  b3 {[%clk 0:00:22]} 35. Rb7 {[%clk 0:00:29]}  Rf8 {[%clk 0:00:12]} 36. Rxb3 {[%clk 0:00:29]}  Ne2+ {[%clk 0:00:07]} 37. Kf2 {[%clk 0:00:28]}  Nd4 {[%clk 0:00:08]} 38. Rb6+ {[%clk 0:00:22]}  Ke7 {[%clk 0:00:02]} 39. Rb7+ {[%clk 0:00:18]}  Ke6 {[%clk 0:00:02]} 40. Bxd4 {[%clk 0:00:18]}  exd4 {[%clk 0:00:03]} 41. Ke2 {[%clk 0:00:18]}  Kf5 {[%clk 0:00:02]} 42. h4 {[%clk 0:00:17]}  Kg4 {[%clk 0:00:02]} 43. c5 {[%clk 0:00:16]}  Kxh4 {[%clk 0:00:02]} 44. c6 {[%clk 0:00:17]}  Kxg5 {[%clk 0:00:03]} 45. c7 {[%clk 0:00:17]} 1-0


[Site "https://www.chess.com"]

[Event "Titled Tuesday Blitz July 26 Early 2022"]
[White "Atakhan, Abtin"]
[Black "Rodchenkov, Sergey D."]
[WhiteFideId "22502203"]
[BlackFideId "4168712"]
[WhiteElo "2087"]
[BlackElo "2293"]
[Result "1-0"]
[Round "05"]
[TimeControl "180+1"]
[Date "2022.07.26"]
[WhiteClock "0:00:08"]
[BlackClock "0:00:14"]

1. c4 {[%clk 0:02:32]}  e5 {[%clk 0:02:59]} 2. g3 {[%clk 0:01:13]}  Nf6 {[%clk 0:02:59]} 3. Bg2 {[%clk 0:01:13]}  c6 {[%clk 0:02:59]} 4. Nf3 {[%clk 0:01:13]}  e4 {[%clk 0:02:58]} 5. Nd4 {[%clk 0:01:14]}  Qb6 {[%clk 0:02:59]} 6. Nb3 {[%clk 0:01:14]}  a5 {[%clk 0:03:00]} 7. d3 {[%clk 0:01:13]}  a4 {[%clk 0:02:50]} 8. N3d2 {[%clk 0:01:14]}  Bc5 {[%clk 0:02:50]} 9. O-O {[%clk 0:01:09]}  e3 {[%clk 0:02:06]} 10. fxe3 {[%clk 0:01:01]}  Bxe3+ {[%clk 0:02:07]} 11. Kh1 {[%clk 0:01:02]}  Ng4 {[%clk 0:02:06]} 12. Ne4 {[%clk 0:01:02]}  d5 {[%clk 0:02:05]} 13. cxd5 {[%clk 0:00:57]}  O-O {[%clk 0:02:02]} 14. Nbc3 {[%clk 0:00:54]}  Bxc1 {[%clk 0:01:57]} 15. Qxc1 {[%clk 0:00:52]}  Ne3 {[%clk 0:01:58]} 16. Rf3 {[%clk 0:00:45]}  Nxd5 {[%clk 0:01:58]} 17. Nxd5 {[%clk 0:00:19]}  cxd5 {[%clk 0:01:59]} 18. Ng5 {[%clk 0:00:20]}  Nc6 {[%clk 0:01:44]} 19. Qf4 {[%clk 0:00:15]}  Be6 {[%clk 0:00:59]} 20. Raf1 {[%clk 0:00:12]}  h6 {[%clk 0:00:38]} 21. Nxe6 {[%clk 0:00:12]}  fxe6 {[%clk 0:00:39]} 22. Qd6 {[%clk 0:00:13]}  Rxf3 {[%clk 0:00:38]} 23. Qxe6+ {[%clk 0:00:13]}  Kh8 {[%clk 0:00:38]} 24. Bxf3 {[%clk 0:00:12]}  Qxb2 {[%clk 0:00:36]} 25. Bxd5 {[%clk 0:00:11]}  Nd4 {[%clk 0:00:23]} 26. Qe5 {[%clk 0:00:09]}  Qxe2 {[%clk 0:00:21]} 27. Qxe2 {[%clk 0:00:08]}  Nxe2 {[%clk 0:00:22]} 28. Bxb7 {[%clk 0:00:09]}  Ra7 {[%clk 0:00:14]} 29. Be4 {[%clk 0:00:07]}  g6 {[%clk 0:00:11]} 30. Bxg6 {[%clk 0:00:06]}  Kg7 {[%clk 0:00:11]} 31. Be4 {[%clk 0:00:05]}  Nc3 {[%clk 0:00:10]} 32. a3 {[%clk 0:00:04]}  Nb5 {[%clk 0:00:10]} 33. Ra1 {[%clk 0:00:03]}  Kf6 {[%clk 0:00:10]} 34. Bc6 {[%clk 0:00:02]}  Nd4 {[%clk 0:00:09]} 35. Bd5 {[%clk 0:00:03]}  Ke5 {[%clk 0:00:09]} 36. Bc4 {[%clk 0:00:03]}  Nc2 {[%clk 0:00:08]} 37. Ra2 {[%clk 0:00:04]}  Ne3 {[%clk 0:00:08]} 38. Re2 {[%clk 0:00:04]}  Kd4 {[%clk 0:00:08]} 39. Kg1 {[%clk 0:00:04]}  Nxc4 {[%clk 0:00:08]} 40. dxc4 {[%clk 0:00:05]}  Kxc4 {[%clk 0:00:09]} 41. Re3 {[%clk 0:00:06]}  Rd7 {[%clk 0:00:09]} 42. Kf2 {[%clk 0:00:05]}  Rd2+ {[%clk 0:00:09]} 43. Kg1 {[%clk 0:00:05]}  Rb2 {[%clk 0:00:08]} 44. g4 {[%clk 0:00:04]}  Rb3 {[%clk 0:00:08]} 45. Re4+ {[%clk 0:00:04]}  Kd3 {[%clk 0:00:07]} 46. Rxa4 {[%clk 0:00:04]}  Ke3 {[%clk 0:00:08]} 47. Kg2 {[%clk 0:00:04]}  Rb2+ {[%clk 0:00:07]} 48. Kg3 {[%clk 0:00:05]}  Rb3 {[%clk 0:00:08]} 49. h3 {[%clk 0:00:03]}  Ke2+ {[%clk 0:00:08]} 50. Kh4 {[%clk 0:00:03]}  Ke3 {[%clk 0:00:09]} 51. Kh5 {[%clk 0:00:03]}  Kf2 {[%clk 0:00:09]} 52. h4 {[%clk 0:00:03]}  Rh3 {[%clk 0:00:10]} 53. g5 {[%clk 0:00:03]}  hxg5 {[%clk 0:00:10]} 54. Kxg5 {[%clk 0:00:04]}  Kg3 {[%clk 0:00:10]} 55. h5 {[%clk 0:00:03]}  Kf3 {[%clk 0:00:10]} 56. Rg4 {[%clk 0:00:04]}  Kf2 {[%clk 0:00:08]} 57. a4 {[%clk 0:00:04]}  Re3 {[%clk 0:00:09]} 58. a5 {[%clk 0:00:04]}  Re8 {[%clk 0:00:10]} 59. Kh6 {[%clk 0:00:04]}  Ra8 {[%clk 0:00:11]} 60. Rg5 {[%clk 0:00:04]}  Re8 {[%clk 0:00:11]} 61. Kg7 {[%clk 0:00:05]}  Kf3 {[%clk 0:00:12]} 62. h6 {[%clk 0:00:05]}  Kf4 {[%clk 0:00:13]} 63. Rg6 {[%clk 0:00:06]}  Kf5 {[%clk 0:00:13]} 64. Rf6+ {[%clk 0:00:07]}  Kg5 {[%clk 0:00:13]} 65. Rf7 {[%clk 0:00:06]}  Re6 {[%clk 0:00:12]} 66. h7 {[%clk 0:00:06]}  Rg6+ {[%clk 0:00:13]} 67. Kf8 {[%clk 0:00:06]}  Rh6 {[%clk 0:00:13]} 68. Kg8 {[%clk 0:00:06]}  Rg6+ {[%clk 0:00:12]} 69. Rg7 {[%clk 0:00:06]}  Kh6 {[%clk 0:00:13]} 70. Rxg6+ {[%clk 0:00:07]}  Kxg6 {[%clk 0:00:14]} 71. h8=Q {[%clk 0:00:08]}  Kf5 {[%clk 0:00:14]} 72. Qd4 {[%clk 0:00:08]} 1-0


[Site "https://www.chess.com"]

[Event "Titled Tuesday Blitz July 26 Early 2022"]
[White "Coto Mederos, Michel"]
[Black "Mamedov, Edgar"]
[WhiteFideId "3508528"]
[BlackFideId "13739980"]
[WhiteElo "2427"]
[BlackElo "2107"]
[Result "1-0"]
[Round "05"]
[TimeControl "180+1"]
[Date "2022.07.27"]
[WhiteClock "0:00:05"]
[BlackClock "0:00:02"]

1. d4 {[%clk 0:03:00]}  d5 {[%clk 0:02:58]} 2. c4 {[%clk 0:02:59]}  c6 {[%clk 0:02:58]} 3. Nf3 {[%clk 0:02:58]}  Nf6 {[%clk 0:02:57]} 4. Nc3 {[%clk 0:02:58]}  e6 {[%clk 0:02:57]} 5. cxd5 {[%clk 0:02:58]}  exd5 {[%clk 0:02:54]} 6. Bg5 {[%clk 0:02:58]}  Be7 {[%clk 0:02:54]} 7. e3 {[%clk 0:02:58]}  O-O {[%clk 0:02:52]} 8. Bd3 {[%clk 0:02:58]}  h6 {[%clk 0:02:48]} 9. Bh4 {[%clk 0:02:56]}  Re8 {[%clk 0:02:46]} 10. O-O {[%clk 0:02:55]}  Nbd7 {[%clk 0:02:44]} 11. Qc2 {[%clk 0:02:55]}  Nf8 {[%clk 0:02:41]} 12. Rab1 {[%clk 0:02:55]}  a5 {[%clk 0:02:38]} 13. a3 {[%clk 0:02:54]}  Ne6 {[%clk 0:02:34]} 14. b4 {[%clk 0:02:52]}  axb4 {[%clk 0:02:33]} 15. axb4 {[%clk 0:02:53]}  b5 {[%clk 0:02:18]} 16. Ne5 {[%clk 0:02:50]}  Bb7 {[%clk 0:02:16]} 17. Ne2 {[%clk 0:02:40]}  Ra4 {[%clk 0:02:08]} 18. Nxc6 {[%clk 0:02:15]}  Bxc6 {[%clk 0:02:06]} 19. Qxc6 {[%clk 0:02:16]}  Rxb4 {[%clk 0:01:59]} 20. Bxb5 {[%clk 0:02:03]}  Rf8 {[%clk 0:01:58]} 21. Rxb4 {[%clk 0:01:52]}  Bxb4 {[%clk 0:01:59]} 22. Rc1 {[%clk 0:01:46]}  Ng5 {[%clk 0:01:52]} 23. Bxg5 {[%clk 0:01:39]}  hxg5 {[%clk 0:01:51]} 24. Ng3 {[%clk 0:01:37]}  Ng4 {[%clk 0:01:30]} 25. Be2 {[%clk 0:01:31]}  Nf6 {[%clk 0:01:17]} 26. h3 {[%clk 0:01:20]}  g6 {[%clk 0:01:17]} 27. Bf3 {[%clk 0:01:16]}  Kg7 {[%clk 0:01:17]} 28. Ne2 {[%clk 0:01:11]}  Rh8 {[%clk 0:01:10]} 29. Rb1 {[%clk 0:01:09]}  Bd6 {[%clk 0:01:08]} 30. g3 {[%clk 0:00:41]}  Rxh3 {[%clk 0:01:03]} 31. Rb7 {[%clk 0:00:36]}  Qa5 {[%clk 0:00:56]} 32. Rb1 {[%clk 0:00:27]}  Be7 {[%clk 0:00:44]} 33. Nc3 {[%clk 0:00:25]}  g4 {[%clk 0:00:28]} 34. Bg2 {[%clk 0:00:25]}  Rh5 {[%clk 0:00:28]} 35. Rf1 {[%clk 0:00:21]}  Bb4 {[%clk 0:00:27]} 36. Ne2 {[%clk 0:00:20]}  Qd8 {[%clk 0:00:25]} 37. Nf4 {[%clk 0:00:20]}  Rf5 {[%clk 0:00:23]} 38. Qb7 {[%clk 0:00:20]}  Qd6 {[%clk 0:00:16]} 39. Rb1 {[%clk 0:00:17]}  g5 {[%clk 0:00:16]} 40. Qxb4 {[%clk 0:00:15]}  Qxb4 {[%clk 0:00:15]} 41. Rxb4 {[%clk 0:00:16]}  gxf4 {[%clk 0:00:16]} 42. gxf4 {[%clk 0:00:17]}  Rh5 {[%clk 0:00:14]} 43. Rb5 {[%clk 0:00:17]}  Kg6 {[%clk 0:00:12]} 44. Rc5 {[%clk 0:00:17]}  Rf5 {[%clk 0:00:10]} 45. Bf1 {[%clk 0:00:16]}  Rh5 {[%clk 0:00:10]} 46. Bd3+ {[%clk 0:00:15]}  Kg7 {[%clk 0:00:10]} 47. Bb1 {[%clk 0:00:15]}  Kf8 {[%clk 0:00:10]} 48. Ba2 {[%clk 0:00:15]}  Ke7 {[%clk 0:00:10]} 49. Ra5 {[%clk 0:00:15]}  Ke6 {[%clk 0:00:10]} 50. Ra6+ {[%clk 0:00:15]}  Ke7 {[%clk 0:00:09]} 51. Ra5 {[%clk 0:00:15]}  Ke6 {[%clk 0:00:08]} 52. Kg2 {[%clk 0:00:16]}  Ne4 {[%clk 0:00:07]} 53. Bb1 {[%clk 0:00:11]}  Nd2 {[%clk 0:00:06]} 54. Bd3 {[%clk 0:00:11]}  Nf3 {[%clk 0:00:06]} 55. Ra6+ {[%clk 0:00:10]}  Ke7 {[%clk 0:00:06]} 56. Kg3 {[%clk 0:00:10]}  f5 {[%clk 0:00:05]} 57. Ra7+ {[%clk 0:00:06]}  Ke6 {[%clk 0:00:04]} 58. Ra6+ {[%clk 0:00:06]}  Ke7 {[%clk 0:00:04]} 59. Bf1 {[%clk 0:00:06]}  Nd2 {[%clk 0:00:02]} 60. Bg2 {[%clk 0:00:06]}  Ne4+ {[%clk 0:00:03]} 61. Bxe4 {[%clk 0:00:05]}  dxe4 {[%clk 0:00:03]} 62. Rb6 {[%clk 0:00:05]}  Rh3+ {[%clk 0:00:04]} 63. Kg2 {[%clk 0:00:05]}  Rf3 {[%clk 0:00:02]} 64. Rg6 {[%clk 0:00:04]}  g3 {[%clk 0:00:03]} 65. Rxg3 {[%clk 0:00:04]}  Rxg3+ {[%clk 0:00:02]} 66. Kxg3 {[%clk 0:00:05]} 1-0


[Site "https://www.chess.com"]

[Event "Titled Tuesday Blitz July 26 Early 2022"]
[White "Derraugh, Geordie"]
[Black "Ozer, Omer Faruk"]
[WhiteFideId "2603950"]
[BlackFideId "6354564"]
[WhiteElo "2116"]
[BlackElo "2050"]
[Result "0-1"]
[Round "05"]
[TimeControl "180+1"]
[Date "2022.07.27"]
[WhiteClock "0:00:01"]
[BlackClock "0:00:32"]

1. e4 {[%clk 0:03:00]}  Nf6 {[%clk 0:02:58]} 2. e5 {[%clk 0:03:00]}  Nd5 {[%clk 0:02:58]} 3. d4 {[%clk 0:02:59]}  d6 {[%clk 0:02:59]} 4. Nf3 {[%clk 0:02:59]}  Bg4 {[%clk 0:02:57]} 5. Be2 {[%clk 0:02:57]}  e6 {[%clk 0:02:57]} 6. O-O {[%clk 0:02:55]}  Be7 {[%clk 0:02:56]} 7. c4 {[%clk 0:02:54]}  Nb6 {[%clk 0:02:56]} 8. exd6 {[%clk 0:02:54]}  cxd6 {[%clk 0:02:55]} 9. Nc3 {[%clk 0:02:53]}  O-O {[%clk 0:02:55]} 10. Be3 {[%clk 0:02:52]}  Nc6 {[%clk 0:02:54]} 11. b3 {[%clk 0:02:51]}  d5 {[%clk 0:02:53]} 12. Ne5 {[%clk 0:02:17]}  Bxe2 {[%clk 0:02:49]} 13. Qxe2 {[%clk 0:02:12]}  Nxe5 {[%clk 0:02:49]} 14. dxe5 {[%clk 0:02:09]}  dxc4 {[%clk 0:02:49]} 15. Bxb6 {[%clk 0:01:53]}  Qxb6 {[%clk 0:02:47]} 16. Qxc4 {[%clk 0:01:53]}  Rac8 {[%clk 0:02:45]} 17. Qd3 {[%clk 0:01:54]}  Rfd8 {[%clk 0:02:44]} 18. Qf3 {[%clk 0:01:50]}  Qa5 {[%clk 0:02:35]} 19. Na4 {[%clk 0:01:33]}  b5 {[%clk 0:02:32]} 20. Nb2 {[%clk 0:01:21]}  Qd2 {[%clk 0:02:30]} 21. Rab1 {[%clk 0:01:15]}  Qd4 {[%clk 0:02:12]} 22. Qb7 {[%clk 0:01:09]}  Ba3 {[%clk 0:01:45]} 23. Nd1 {[%clk 0:00:49]}  Qxe5 {[%clk 0:01:35]} 24. Qxa7 {[%clk 0:00:44]}  Bc5 {[%clk 0:01:35]} 25. Qb7 {[%clk 0:00:42]}  Ra8 {[%clk 0:01:24]} 26. a4 {[%clk 0:00:31]}  bxa4 {[%clk 0:01:23]} 27. bxa4 {[%clk 0:00:32]}  Rxa4 {[%clk 0:01:23]} 28. g3 {[%clk 0:00:18]}  h5 {[%clk 0:01:22]} 29. Qf3 {[%clk 0:00:18]}  h4 {[%clk 0:01:18]} 30. Rb7 {[%clk 0:00:17]}  Rf8 {[%clk 0:01:16]} 31. Nb2 {[%clk 0:00:13]}  Ra3 {[%clk 0:01:14]} 32. Nc4 {[%clk 0:00:09]}  Rxf3 {[%clk 0:01:07]} 33. Nxe5 {[%clk 0:00:10]}  Rf5 {[%clk 0:01:04]} 34. Nd7 {[%clk 0:00:09]}  hxg3 {[%clk 0:00:59]} 35. hxg3 {[%clk 0:00:06]}  Rd8 {[%clk 0:00:59]} 36. Nxc5 {[%clk 0:00:03]}  Rxc5 {[%clk 0:00:59]} 37. Kg2 {[%clk 0:00:03]}  Rd2 {[%clk 0:00:58]} 38. Rb3 {[%clk 0:00:03]}  Rcc2 {[%clk 0:00:58]} 39. Rf3 {[%clk 0:00:04]}  f5 {[%clk 0:00:51]} 40. Re1 {[%clk 0:00:04]}  Kf7 {[%clk 0:00:51]} 41. g4 {[%clk 0:00:05]}  Kf6 {[%clk 0:00:49]} 42. gxf5 {[%clk 0:00:04]}  exf5 {[%clk 0:00:50]} 43. Rb1 {[%clk 0:00:04]}  Rd6 {[%clk 0:00:42]} 44. Rb5 {[%clk 0:00:04]}  g6 {[%clk 0:00:42]} 45. Ra5 {[%clk 0:00:04]}  Rc4 {[%clk 0:00:42]} 46. Rb5 {[%clk 0:00:04]}  Rg4+ {[%clk 0:00:42]} 47. Rg3 {[%clk 0:00:04]}  Rf4 {[%clk 0:00:39]} 48. Rf3 {[%clk 0:00:04]}  Kg5 {[%clk 0:00:38]} 49. Rxf4 {[%clk 0:00:04]}  Kxf4 {[%clk 0:00:39]} 50. Rb4+ {[%clk 0:00:04]}  Kg5 {[%clk 0:00:39]} 51. Kg3 {[%clk 0:00:04]}  Rd3+ {[%clk 0:00:39]} 52. f3 {[%clk 0:00:05]}  Rd1 {[%clk 0:00:38]} 53. Ra4 {[%clk 0:00:05]}  f4+ {[%clk 0:00:34]} 54. Kg2 {[%clk 0:00:02]}  Rd2+ {[%clk 0:00:33]} 55. Kh3 {[%clk 0:00:03]}  Rf2 {[%clk 0:00:32]} 56. Ra5+ {[%clk 0:00:03]}  Kh6 {[%clk 0:00:32]} 57. Ra3 {[%clk 0:00:03]}  Kh5 {[%clk 0:00:32]} 58. Rb3 {[%clk 0:00:02]}  g5 {[%clk 0:00:32]} 59. Ra3 {[%clk 0:00:03]}  Re2 {[%clk 0:00:32]} 60. Ra8 {[%clk 0:00:02]}  Re3 {[%clk 0:00:32]} 61. Rh8+ {[%clk 0:00:01]}  Kg6 {[%clk 0:00:32]} 0-1


[Site "https://www.chess.com"]

[Event "Titled Tuesday Blitz July 26 Early 2022"]
[White "Drygalov, Andrey"]
[Black "Lianes Garcia, Marcos"]
[WhiteFideId "24171735"]
[BlackFideId "32060777"]
[WhiteElo "2531"]
[BlackElo "2334"]
[Result "0-1"]
[Round "05"]
[TimeControl "180+1"]
[Date "2022.07.26"]
[WhiteClock "0:00:01"]
[BlackClock "0:00:05"]

1. e4 {[%clk 0:03:00]}  g6 {[%clk 0:03:00]} 2. d4 {[%clk 0:03:00]}  Bg7 {[%clk 0:03:00]} 3. Nc3 {[%clk 0:03:00]}  c5 {[%clk 0:03:00]} 4. dxc5 {[%clk 0:03:00]}  Bxc3+ {[%clk 0:03:00]} 5. bxc3 {[%clk 0:03:00]}  Qa5 {[%clk 0:03:01]} 6. Qd4 {[%clk 0:02:50]}  Nf6 {[%clk 0:03:01]} 7. Qb4 {[%clk 0:02:50]}  Qc7 {[%clk 0:03:00]} 8. Nf3 {[%clk 0:02:47]}  Nc6 {[%clk 0:02:59]} 9. Qc4 {[%clk 0:02:45]}  b6 {[%clk 0:02:54]} 10. Bd3 {[%clk 0:02:11]}  bxc5 {[%clk 0:02:47]} 11. Qxc5 {[%clk 0:02:08]}  d6 {[%clk 0:02:46]} 12. Qg5 {[%clk 0:02:07]}  h6 {[%clk 0:02:43]} 13. Qe3 {[%clk 0:02:03]}  Ng4 {[%clk 0:02:22]} 14. Qe2 {[%clk 0:01:57]}  Nge5 {[%clk 0:02:22]} 15. Nd2 {[%clk 0:01:29]}  Na5 {[%clk 0:01:53]} 16. O-O {[%clk 0:01:27]}  Qxc3 {[%clk 0:01:47]} 17. Rb1 {[%clk 0:01:27]}  Qc7 {[%clk 0:01:41]} 18. Bb2 {[%clk 0:01:25]}  O-O {[%clk 0:01:23]} 19. Qe3 {[%clk 0:01:24]}  Kh7 {[%clk 0:01:18]} 20. h3 {[%clk 0:01:18]}  f6 {[%clk 0:01:07]} 21. Qd4 {[%clk 0:01:17]}  Be6 {[%clk 0:01:04]} 22. f4 {[%clk 0:01:14]}  Nec4 {[%clk 0:01:05]} 23. Bc3 {[%clk 0:01:08]}  Nxd2 {[%clk 0:00:58]} 24. Bxd2 {[%clk 0:01:08]}  Nc4 {[%clk 0:00:56]} 25. Bc1 {[%clk 0:00:57]}  Nb6 {[%clk 0:00:49]} 26. f5 {[%clk 0:00:55]}  Bf7 {[%clk 0:00:47]} 27. fxg6+ {[%clk 0:00:51]}  Bxg6 {[%clk 0:00:47]} 28. Qf2 {[%clk 0:00:52]}  Nc4 {[%clk 0:00:40]} 29. Qh4 {[%clk 0:00:47]}  h5 {[%clk 0:00:32]} 30. Rf5 {[%clk 0:00:47]}  Kg7 {[%clk 0:00:26]} 31. Rxh5 {[%clk 0:00:30]}  Bxh5 {[%clk 0:00:19]} 32. Qxh5 {[%clk 0:00:30]}  Rh8 {[%clk 0:00:19]} 33. Qg4+ {[%clk 0:00:13]}  Kf7 {[%clk 0:00:19]} 34. Qe2 {[%clk 0:00:06]}  Ne5 {[%clk 0:00:18]} 35. Be3 {[%clk 0:00:07]}  Nxd3 {[%clk 0:00:17]} 36. Qxd3 {[%clk 0:00:07]}  Rac8 {[%clk 0:00:14]} 37. Qd5+ {[%clk 0:00:07]}  Kf8 {[%clk 0:00:15]} 38. Rf1 {[%clk 0:00:07]}  Qxc2 {[%clk 0:00:12]} 39. Bd4 {[%clk 0:00:07]}  Qc4 {[%clk 0:00:09]} 40. Qf5 {[%clk 0:00:06]}  Ke8 {[%clk 0:00:05]} 41. Bf2 {[%clk 0:00:05]}  Rf8 {[%clk 0:00:04]} 42. Re1 {[%clk 0:00:04]}  Rc5 {[%clk 0:00:02]} 43. Qg6+ {[%clk 0:00:04]}  Kd7 {[%clk 0:00:02]} 44. Qg4+ {[%clk 0:00:04]}  Qe6 {[%clk 0:00:02]} 45. Qe2 {[%clk 0:00:02]}  Re5 {[%clk 0:00:02]} 46. Rc1 {[%clk 0:00:03]}  Ke8 {[%clk 0:00:03]} 47. Qc2 {[%clk 0:00:02]}  Kf7 {[%clk 0:00:03]} 48. Qe2 {[%clk 0:00:02]}  Rxe4 {[%clk 0:00:03]} 49. Qh5+ {[%clk 0:00:03]}  Kg7 {[%clk 0:00:04]} 50. Rc3 {[%clk 0:00:03]}  Re5 {[%clk 0:00:04]} 51. Qf3 {[%clk 0:00:03]}  Rf5 {[%clk 0:00:04]} 52. Qg4+ {[%clk 0:00:03]}  Kf7 {[%clk 0:00:04]} 53. Rg3 {[%clk 0:00:03]}  Rg5 {[%clk 0:00:04]} 54. Qf4 {[%clk 0:00:01]}  Rxg3 {[%clk 0:00:05]} 55. Bxg3 {[%clk 0:00:02]}  Rg8 {[%clk 0:00:05]} 56. Qf3 {[%clk 0:00:03]}  a5 {[%clk 0:00:06]} 57. Qh5+ {[%clk 0:00:03]}  Rg6 {[%clk 0:00:06]} 58. Kh2 {[%clk 0:00:03]}  f5 {[%clk 0:00:05]} 59. Qh7+ {[%clk 0:00:03]}  Rg7 {[%clk 0:00:05]} 60. Qh4 {[%clk 0:00:04]}  Qf6 {[%clk 0:00:06]} 61. Qf4 {[%clk 0:00:03]}  Qg6 {[%clk 0:00:06]} 62. Qc4+ {[%clk 0:00:01]}  Qe6 {[%clk 0:00:06]} 63. Qc3 {[%clk 0:00:02]}  Qe4 {[%clk 0:00:06]} 64. Kg1 {[%clk 0:00:01]}  f4 {[%clk 0:00:05]} 65. Qb3+ {[%clk 0:00:01]}  d5 {[%clk 0:00:06]} 66. Bxf4 {[%clk 0:00:01]}  Qxg2# {[%clk 0:00:05]} 0-1


[Site "https://www.chess.com"]